[Event "Schack-SM 2023: Mastarklassen-elit"]
[Site "Helsingborg Arena, Mellersta Stenbocksgatan 14, Helsingborg, Sweden"]
[Date "2023.07.08"]
[Round "8.3"]
[White "Olund, Joar"]
[Black "Lindberg, Bengt"]
[Result "1/2-1/2"]
[TimeControl "90 minutes for 40 moves + 30 minutes for the rest of games + 30 seconds per move from move one."]
[WhiteTitle "FM"]
[BlackTitle "IM"]
[WhiteElo "2399"]
[BlackElo "2353"]

1. d4 {[%clk 01:18:44]} {[%emt 00:12:16]} e6 {[%clk 01:30:43]} {[%emt
00:00:17]} 2. c4 {[%clk 01:18:08]} {[%emt 00:01:07]} Nf6 {[%clk 01:31:05]}
{[%emt 00:00:07]} 3. Nf3 {[%clk 01:18:31]} {[%emt 00:00:07]} d5 {[%clk
01:31:22]} {[%emt 00:00:13]} 4. g3 {[%clk 01:18:07]} {[%emt 00:00:55]} Be7
{[%clk 01:31:45]} {[%emt 00:00:06]} 5. Bg2 {[%clk 01:18:24]} {[%emt 00:00:13]}
O-O {[%clk 01:32:07]} {[%emt 00:00:08]} 6. O-O {[%clk 01:18:30]} {[%emt
00:00:25]} a5 {[%clk 01:32:29]} {[%emt 00:00:08]} 7. Nc3 {[%clk 01:15:44]}
{[%emt 00:03:16]} c6 {[%clk 01:32:38]} {[%emt 00:00:20]} 8. Nd2 {[%clk
01:11:41]} {[%emt 00:04:33]} b6 {[%clk 01:30:18]} {[%emt 00:02:50]} 9. Re1
{[%clk 01:05:17]} {[%emt 00:06:54]} Ba6 {[%clk 01:29:08]} {[%emt 00:01:40]} 10.
cxd5 {[%clk 01:04:51]} {[%emt 00:00:58]} cxd5 {[%clk 01:29:29]} {[%emt
00:00:07]} 11. e4 {[%clk 01:05:10]} {[%emt 00:00:11]} Nc6 {[%clk 01:20:30]}
{[%emt 00:09:30]} 12. exd5 {[%clk 01:04:10]} {[%emt 00:01:30]} Nxd5 {[%clk
01:20:53]} {[%emt 00:00:06]} 13. Nxd5 {[%clk 01:02:23]} {[%emt 00:02:18]} exd5
{[%clk 01:21:19]} {[%emt 00:00:03]} 14. Nf3 {[%clk 01:02:26]} {[%emt 00:00:27]}
Rc8 {[%clk 00:49:42]} {[%emt 00:32:06]} 15. a3 {[%clk 00:55:01]} {[%emt
00:07:56]} Qd7 {[%clk 00:43:04]} {[%emt 00:07:08]} 16. Bf4 {[%clk 00:46:40]}
{[%emt 00:08:51]} f6 {[%clk 00:40:33]} {[%emt 00:03:01]} 17. h4 {[%clk
00:41:12]} {[%emt 00:05:58]} Rce8 {[%clk 00:34:35]} {[%emt 00:06:27]} 18. Rc1
{[%clk 00:36:41]} {[%emt 00:05:02]} Bd8 {[%clk 00:34:06]} {[%emt 00:00:58]} 19.
Qc2 {[%clk 00:30:45]} {[%emt 00:06:28]} Rxe1+ {[%clk 00:31:52]} {[%emt
00:02:44]} 20. Rxe1 {[%clk 00:30:17]} {[%emt 00:00:57]} Ne7 {[%clk 00:20:16]}
{[%emt 00:12:05]} 21. Rc1 {[%clk 00:26:13]} {[%emt 00:04:36]} Re8 {[%clk
00:17:21]} {[%emt 00:03:24]} 22. Kh2 {[%clk 00:23:18]} {[%emt 00:03:25]} Qf5
{[%clk 00:15:33]} {[%emt 00:02:17]} 23. Bh3 {[%clk 00:09:15]} {[%emt 00:14:34]}
Qxc2 {[%clk 00:14:56]} {[%emt 00:01:07]} 24. Rxc2 {[%clk 00:09:40]} {[%emt
00:00:06]} Bd3 {[%clk 00:15:16]} {[%emt 00:00:09]} 25. Rc3 {[%clk 00:09:15]}
{[%emt 00:00:55]} Bf5 {[%clk 00:14:17]} {[%emt 00:01:29]} 26. Bc7 {[%clk
00:06:48]} {[%emt 00:02:57]} Bxh3 {[%clk 00:13:47]} {[%emt 00:01:00]} 27. Kxh3
{[%clk 00:06:56]} {[%emt 00:00:23]} Kf7 {[%clk 00:12:37]} {[%emt 00:01:39]} 28.
h5 {[%clk 00:05:43]} {[%emt 00:01:43]} Ke6 {[%clk 00:09:40]} {[%emt 00:03:26]}
29. Bf4 {[%clk 00:04:28]} {[%emt 00:01:46]} Kd7 {[%clk 00:07:29]} {[%emt
00:02:41]} 30. g4 {[%clk 00:02:22]} {[%emt 00:02:36]} Nc6 {[%clk 00:06:25]}
{[%emt 00:01:34]} 31. Re3 {[%clk 00:02:39]} {[%emt 00:00:13]} g6 {[%clk
00:04:28]} {[%emt 00:02:27]} 32. hxg6 {[%clk 00:02:13]} {[%emt 00:00:57]}
1/2-1/2

[ePGN "0.1;DGT LiveChess/2.2.5"]

[Event "Schack-SM 2023: Veteran-SM 65+"]
[Site "Helsingborg Arena, Mellersta Stenbocksgatan 14, Helsingborg, Sweden"]
[Date "2023.07.08"]
[Round "8.1"]
[White "Soderberg, Per"]
[Black "Alquist, Erik"]
[Result "1-0"]
[TimeControl "90 minutes for 40 moves + 30 minutes for the rest of games + 30 seconds per move from move one."]
[WhiteTitle "CM"]
[WhiteElo "2111"]
[BlackElo "1936"]

1. e4 {[%clk 01:30:58]} {[%emt 00:29:56]} c5 {[%clk 01:30:53]} {[%emt
00:00:08]} 2. Nf3 {[%clk 01:31:22]} {[%emt 00:00:05]} e6 {[%clk 01:31:11]}
{[%emt 00:00:12]} 3. c3 {[%clk 01:30:56]} {[%emt 00:00:56]} Nf6 {[%clk
01:31:27]} {[%emt 00:00:14]} 4. e5 {[%clk 01:31:17]} {[%emt 00:00:09]} Nd5
{[%clk 01:31:51]} {[%emt 00:00:06]} 5. Bc4 {[%clk 01:31:40]} {[%emt 00:00:07]}
d6 {[%clk 01:31:52]} {[%emt 00:00:30]} 6. d4 {[%clk 01:31:24]} {[%emt
00:00:45]} cxd4 {[%clk 01:31:57]} {[%emt 00:00:25]} 7. cxd4 {[%clk 01:31:40]}
{[%emt 00:00:15]} Be7 {[%clk 01:32:03]} {[%emt 00:00:23]} 8. O-O {[%clk
01:31:44]} {[%emt 00:00:27]} O-O {[%clk 01:32:14]} {[%emt 00:00:19]} 9. Nc3
{[%clk 01:30:39]} {[%emt 00:01:34]} Nxc3 {[%clk 01:30:06]} {[%emt 00:02:38]} 10.
bxc3 {[%clk 01:31:04]} {[%emt 00:00:06]} Qc7 {[%clk 01:27:53]} {[%emt
00:02:44]} 11. exd6 {[%clk 01:25:14]} {[%emt 00:06:19]} Bxd6 {[%clk 01:27:32]}
{[%emt 00:00:50]} 12. Qd3 {[%clk 01:25:10]} {[%emt 00:00:34]} Nd7 {[%clk
01:22:42]} {[%emt 00:05:20]} 13. Bb3 {[%clk 01:24:17]} {[%emt 00:01:23]} Re8
{[%clk 01:16:11]} {[%emt 00:07:02]} 14. Bb2 {[%clk 01:21:53]} {[%emt 00:02:53]}
Nf8 {[%clk 01:09:45]} {[%emt 00:06:57]} 15. c4 {[%clk 01:21:07]} {[%emt
00:01:16]} b6 {[%clk 01:08:54]} {[%emt 00:01:22]} 16. Rfe1 {[%clk 01:17:35]}
{[%emt 00:04:00]} Bb7 {[%clk 01:08:08]} {[%emt 00:01:16]} 17. d5 {[%clk
01:07:48]} {[%emt 00:10:18]} e5 {[%clk 01:00:33]} {[%emt 00:08:05]} 18. Ng5
{[%clk 01:01:36]} {[%emt 00:06:41]} Rad8 {[%clk 00:55:08]} {[%emt 00:05:55]} 19.
Ba4 {[%clk 00:55:05]} {[%emt 00:07:01]} Re7 {[%clk 00:53:13]} {[%emt 00:02:26]}
20. Ne4 {[%clk 00:52:48]} {[%emt 00:02:47]} Nd7 {[%clk 00:47:31]} {[%emt
00:06:12]} 21. Bc2 {[%clk 00:51:33]} {[%emt 00:01:44]} g6 {[%clk 00:45:37]}
{[%emt 00:02:23]} 22. Nxd6 {[%clk 00:47:02]} {[%emt 00:05:02]} Qxd6 {[%clk
00:45:57]} {[%emt 00:00:11]} 23. Ba3 {[%clk 00:46:55]} {[%emt 00:00:37]} Nc5
{[%clk 00:45:48]} {[%emt 00:00:38]} 24. Qe3 {[%clk 00:45:11]} {[%emt 00:02:14]}
Rc8 {[%clk 00:40:46]} {[%emt 00:05:33]} 25. Qh6 {[%clk 00:38:01]} {[%emt
00:07:39]} Ree8 {[%clk 00:35:15]} {[%emt 00:06:01]} 26. Rad1 {[%clk 00:32:46]}
{[%emt 00:05:45]} Ba6 {[%clk 00:33:35]} {[%emt 00:02:11]} 27. Re3 {[%clk
00:30:24]} {[%emt 00:02:51]} Rc7 {[%clk 00:32:32]} {[%emt 00:01:33]} 28. Rh3
{[%clk 00:27:49]} {[%emt 00:03:05]} f5 {[%clk 00:32:34]} {[%emt 00:00:29]} 29.
Bxf5 {[%clk 00:27:35]} {[%emt 00:00:44]} Bxc4 {[%clk 00:32:08]} {[%emt
00:00:56]} 30. Bxg6 {[%clk 00:27:31]} {[%emt 00:00:34]} Re6 {[%clk 00:28:12]}
{[%emt 00:04:25]} 31. Bxh7+ {[%clk 00:27:05]} {[%emt 00:00:57]} Kh8 {[%clk
00:28:28]} {[%emt 00:00:14]} 32. Bg6+ {[%clk 00:27:15]} {[%emt 00:00:20]} 1-0

[ePGN "0.1;DGT LiveChess/2.2.5"]

[Event "Schack-SM 2023: Veteran-SM 50+"]
[Site "Helsingborg Arena, Mellersta Stenbocksgatan 14, Helsingborg, Sweden"]
[Date "2023.07.08"]
[Round "8.1"]
[White "Wahlund, Max"]
[Black "Andersson, Bjorn 1961"]
[Result "1-0"]
[TimeControl "90 minutes for 40 moves + 30 minutes for the rest of games + 30 seconds per move from move one."]
[WhiteTitle "CM"]
[WhiteElo "2002"]
[BlackElo "1791"]

1. Nf3 {[%clk 01:30:46]} {[%emt 00:00:13]} d5 {[%clk 01:30:29]} {[%emt
00:00:32]} 2. c4 {[%clk 01:31:09]} {[%emt 00:00:06]} Nf6 {[%clk 01:29:17]}
{[%emt 00:01:43]} 3. cxd5 {[%clk 01:31:36]} {[%emt 00:00:03]} Nxd5 {[%clk
01:29:07]} {[%emt 00:00:38]} 4. d4 {[%clk 01:32:02]} {[%emt 00:00:05]} e6
{[%clk 01:27:22]} {[%emt 00:02:16]} 5. e4 {[%clk 01:32:23]} {[%emt 00:00:08]}
Bb4+ {[%clk 01:27:44]} {[%emt 00:00:08]} 6. Bd2 {[%clk 01:20:14]} {[%emt
00:12:38]} Bxd2+ {[%clk 01:27:22]} {[%emt 00:00:52]} 7. Qxd2 {[%clk 01:20:41]}
{[%emt 00:00:03]} Nf6 {[%clk 01:21:32]} {[%emt 00:06:20]} 8. Nc3 {[%clk
01:21:04]} {[%emt 00:00:07]} b6 {[%clk 01:19:13]} {[%emt 00:02:50]} 9. Bb5+
{[%clk 01:15:34]} {[%emt 00:05:59]} Bd7 {[%clk 01:17:25]} {[%emt 00:02:18]} 10.
Bd3 {[%clk 01:15:30]} {[%emt 00:00:34]} c5 {[%clk 01:16:57]} {[%emt 00:00:59]}
11. e5 {[%clk 01:06:50]} {[%emt 00:09:08]} cxd4 {[%clk 01:05:16]} {[%emt
00:12:12]} 12. Nxd4 {[%clk 01:06:44]} {[%emt 00:00:35]} Nd5 {[%clk 01:04:09]}
{[%emt 00:01:38]} 13. Be4 {[%clk 00:55:58]} {[%emt 00:11:16]} Qc7 {[%clk
00:56:09]} {[%emt 00:08:31]} 14. f4 {[%clk 00:52:53]} {[%emt 00:03:34]} O-O
{[%clk 00:49:47]} {[%emt 00:06:53]} 15. Nxd5 {[%clk 00:51:35]} {[%emt
00:01:47]} exd5 {[%clk 00:49:59]} {[%emt 00:00:19]} 16. Bxd5 {[%clk 00:52:02]}
{[%emt 00:00:03]} Bc6 {[%clk 00:49:08]} {[%emt 00:01:20]} 17. Rc1 {[%clk
00:51:07]} {[%emt 00:01:24]} Rd8 {[%clk 00:49:24]} {[%emt 00:00:16]} 18. Nxc6
{[%clk 00:50:28]} {[%emt 00:01:08]} Rxd5 {[%clk 00:37:07]} {[%emt 00:12:47]} 19.
Ne7+ {[%clk 00:48:14]} {[%emt 00:02:44]} 1-0

[Event "Schack-SM 2023: Sverigemastarklassen"]
[Site "Helsingborg Arena, Mellersta Stenbocksgatan 14, Helsingborg, Sweden"]
[Date "2023.07.08"]
[Round "8.5"]
[White "Blomqvist, Erik"]
[Black "Hector, Jonny"]
[Result "1-0"]
[TimeControl "90 minutes for 40 moves + 30 minutes for the rest of the game + 30 seconds per move from move one."]
[WhiteTitle "GM"]
[BlackTitle "GM"]
[WhiteFideId "1709437"]
[BlackFideId "1700090"]
[WhiteElo "2500"]
[BlackElo "2481"]

1. d4 {[%clk 01:30:53]} {[%emt 00:00:06]} d5 {[%clk 01:30:14]} {[%emt
00:00:37]} 2. Nf3 {[%clk 01:30:34]} {[%emt 00:00:58]} Nf6 {[%clk 01:30:29]}
{[%emt 00:00:14]} 3. Bf4 {[%clk 01:30:57]} {[%emt 00:00:08]} c5 {[%clk
01:30:05]} {[%emt 00:00:53]} 4. e3 {[%clk 01:31:20]} {[%emt 00:00:08]} Nc6
{[%clk 01:30:06]} {[%emt 00:00:29]} 5. Nbd2 {[%clk 01:31:42]} {[%emt 00:00:08]}
cxd4 {[%clk 01:26:04]} {[%emt 00:04:32]} 6. exd4 {[%clk 01:31:41]} {[%emt
00:00:32]} Bf5 {[%clk 01:25:04]} {[%emt 00:01:29]} 7. Bb5 {[%clk 01:31:35]}
{[%emt 00:00:36]} Rc8 {[%clk 01:23:10]} {[%emt 00:02:24]} 8. Ne5 {[%clk
01:31:22]} {[%emt 00:00:44]} Qb6 {[%clk 01:21:49]} {[%emt 00:01:51]} 9. Qe2
{[%clk 01:31:18]} {[%emt 00:00:34]} e6 {[%clk 01:16:35]} {[%emt 00:05:43]} 10.
c3 {[%clk 01:23:27]} {[%emt 00:08:22]} a6 {[%clk 01:09:10]} {[%emt 00:07:56]}
11. Bxc6+ {[%clk 01:22:54]} {[%emt 00:01:02]} bxc6 {[%clk 01:09:30]} {[%emt
00:00:09]} 12. g4 {[%clk 01:18:07]} {[%emt 00:05:17]} Nxg4 {[%clk 01:00:26]}
{[%emt 00:09:35]} 13. Nxg4 {[%clk 01:18:04]} {[%emt 00:00:33]} Qxb2 {[%clk
01:00:33]} {[%emt 00:00:22]} 14. O-O {[%clk 01:00:20]} {[%emt 00:18:14]} Bxg4
{[%clk 00:58:16]} {[%emt 00:02:48]} 15. Qxg4 {[%clk 00:59:29]} {[%emt
00:01:22]} Qxc3 {[%clk 00:55:15]} {[%emt 00:03:30]} 16. Nf3 {[%clk 00:49:12]}
{[%emt 00:10:47]} h5 {[%clk 00:39:50]} {[%emt 00:15:55]} 17. Qg3 {[%clk
00:44:19]} {[%emt 00:05:23]} h4 {[%clk 00:33:17]} {[%emt 00:07:03]} 18. Qg4
{[%clk 00:39:20]} {[%emt 00:05:30]} Be7 {[%clk 00:31:52]} {[%emt 00:01:54]} 19.
Rab1 {[%clk 00:35:59]} {[%emt 00:03:52]} g5 {[%clk 00:28:24]} {[%emt 00:03:57]}
20. Bxg5 {[%clk 00:33:59]} {[%emt 00:02:31]} Rg8 {[%clk 00:28:00]} {[%emt
00:00:53]} 21. Rb7 {[%clk 00:32:09]} {[%emt 00:02:21]} Bxg5 {[%clk 00:28:06]}
{[%emt 00:00:24]} 22. Nxg5 {[%clk 00:32:07]} {[%emt 00:00:32]} Qd2 {[%clk
00:28:05]} {[%emt 00:00:31]} 23. f4 {[%clk 00:32:11]} {[%emt 00:00:26]} Qxd4+
{[%clk 00:24:56]} {[%emt 00:03:39]} 24. Kh1 {[%clk 00:32:14]} {[%emt 00:00:26]}
Qd3 {[%clk 00:13:10]} {[%emt 00:12:16]} 25. Re1 {[%clk 00:31:29]} {[%emt
00:01:15]} Qg6 {[%clk 00:13:26]} {[%emt 00:00:15]} 26. Qh3 {[%clk 00:28:45]}
{[%emt 00:03:13]} 1-0